[Event "Karel Janecek Open 2025"]
[Site "Prague"]
[Date "2025.03.03"]
[Round "5.10"]
[White "Das, Arghyadip"]
[Black "Zhao, Yuanhe"]
[Result "0-1"]
[Annotator "ChessBase"]
[ECO "B34"]
[WhiteElo "2350"]
[BlackElo "2466"]
[PlyCount "120"]
[EventDate "2025.02.21"]
[EventType "swiss"]
[EventCountry "CZE"]
[SourceTitle "playchess.com"]
[Source "ChessBase"]
[SourceQuality "1"]
[TimeControl "40/5400+30:1800+30"]

1. e4 {[%emt 0:00:03]} c5 {[%emt 0:02:07]} 2. Nf3 {[%emt 0:00:03]} Nc6 {[%emt 0:01:05]} 3. d4 {[%emt 0:00:15]} cxd4 {[%emt 0:00:11]} 4. Nxd4 {[%emt 0:00:05]} g6 {[%emt 0:00:46]} 5. Nc3 {[%emt 0:00:46]} Bg7 {[%emt 0:00:09]} 6. Nb3 {[%emt 0:00:20]} Nf6 {[%emt 0:01:41]} 7. Be3 {[%emt 0:00:28]} O-O {[%emt 0:01:38]} 8. Qd2 {[%emt 0:00:24]} a5 {[%emt 0:03:59]} 9. a4 {[%emt 0:00:40]} d5 {[%emt 0:04:01]} 10. exd5 {[%emt 0:02:26]} Nb4 {[%emt 0:00:10]} 11. Rd1 {[%emt 0:03:24]} Bf5 {[%emt 0:10:06]} 12. Na1 {[%emt 0:15:08]} Rc8 {[%emt 0:06:53]} 13. Be2 {[%emt 0:12:45]} Bxc2 {[%emt 0:07:41]} 14. Rc1 {[%emt 0:14:03]} Ne4 {[%emt 0:04:44]} 15. Nxe4 {[%emt 0:00:11]} Bxe4 {[%emt 0:00:06]} 16. Rxc8 {[%emt 0:02:40]} Qxc8 {[%emt 0:00:07]} 17. O-O {[%emt 0:00:04]} Bxd5 {[%emt 0:00:54]} 18. Rc1 {[%emt 0:07:16]} Qe6 {[%emt 0:01:31]} 19. Nc2 {[%emt 0:00:49]} Bxb2 {[%emt 0:09:58]} 20. Rd1 {[%emt 0:06:45]} Nxc2 {[%emt 0:00:12]} 21. Qxd5 {[%emt 0:00:22]} Qxd5 {[%emt 0:00:05]} 22. Rxd5 {[%emt 0:00:04]} Nxe3 {[%emt 0:00:05]} 23. fxe3 {[%emt 0:00:04]} b6 {[%emt 0:00:04]} 24. Rb5 {[%emt 0:06:56]} Bc1 {[%emt 0:00:06]} 25. Kf2 {[%emt 0:00:01]} Rb8 {[%emt 0:00:07]} 26. Rb3 {[%emt 0:00:01]} Bd2 {[%emt 0:00:07]} 27. Rd3 {[%emt 0:01:04]} Bb4 {[%emt 0:00:06]} 28. Rd7 {[%emt 0:00:08]} Rc8 {[%emt 0:00:22]} 29. Kf3 {[%emt 0:08:16]} Rc2 {[%emt 0:00:36]} 30. Rb7 {[%emt 0:00:44]} Bc5 {[%emt 0:00:09]} 31. Rd7 {[%emt 0:00:07]} Kg7 {[%emt 0:00:07]} 32. Bb5 {[%emt 0:00:40]} h5 {[%emt 0:02:02]} 33. h4 {[%emt 0:07:33]} Bd6 {[%emt 0:02:41]} 34. Rb7 {[%emt 0:00:47]} Rc3 {[%emt 0:00:13]} 35. Rd7 {[%emt 0:00:42]} f5 {[%emt 0:00:40]} 36. g3 {[%emt 0:02:51]} Kf6 {[%emt 0:01:13]} 37. Rd8 {[%emt 0:02:40]} Bc5 {[%emt 0:00:06]} 38. Bd3 {[%emt 0:02:11]} Ra3 {[%emt 0:00:20]} 39. e4 {[%emt 0:00:20]} fxe4+ {[%emt 0:01:40]} 40. Kxe4 {[%emt 0:00:05]} Rxa4+ {[%emt 0:00:05]} 41. Kf3 {[%emt 0:30:04]} Rd4 {[%emt 0:33:22]} 42. Rxd4 {[%emt 0:00:07]} Bxd4 {[%emt 0:00:03]} 43. Bb5 {[%emt 0:00:04]} Bc3 {[%emt 0:00:11]} 44. Kf2 {[%emt 0:01:37]} e5 {[%emt 0:01:50]} 45. Be8 {[%emt 0:00:42]} e4 {[%emt 0:01:42]} 46. Bc6 {[%emt 0:00:11]} Bd4+ {[%emt 0:00:11]} 47. Ke2 {[%emt 0:00:07]} e3 {[%emt 0:00:25]} 48. Kf3 {[%emt 0:00:15]} Kg7 {[%emt 0:02:06]} 49. Bb5 {[%emt 0:02:57]} Bc5 {[%emt 0:00:28]} 50. Be8 {[%emt 0:00:18]} Bd6 {[%emt 0:00:40]} 51. Bb5 {[%emt 0:00:27]} Kf6 {[%emt 0:00:13]} 52. Kg2 {[%emt 0:00:21]} g5 {[%emt 0:01:14]} 53. hxg5+ {[%emt 0:00:30]} Kxg5 {[%emt 0:00:05]} 54. Kf3 {[%emt 0:00:03]} Bc5 {[%emt 0:00:28]} 55. Be8 {[%emt 0:01:49]} h4 {[%emt 0:00:05]} 56. gxh4+ {[%emt 0:00:03]} Kxh4 {[%emt 0:00:04]} 57. Bd7 {[%emt 0:02:16]} Kg5 {[%emt 0:00:05]} 58. Ke2 {[%emt 0:00:09]} Kf4 {[%emt 0:00:12]} 59. Bc6 {[%emt 0:00:03]} Ke5 {[%emt 0:00:07]} 60. Kd3 {[%emt 0:00:04]} Bd4 {[%emt 0:00:09]} 0-1

[Event "Karel Janecek Open 2025"]
[Site "Prague"]
[Date "2025.03.03"]
[Round "5.11"]
[White "Grigoryan, Karen H."]
[Black "Eret, Matous"]
[Result "1-0"]
[Annotator "TA"]
[ECO "C61"]
[WhiteElo "2554"]
[BlackElo "2304"]
[PlyCount "99"]
[EventDate "2025.02.21"]
[EventType "swiss"]
[EventCountry "CZE"]
[SourceTitle "playchess.com"]
[Source "ChessBase"]
[SourceQuality "1"]
[TimeControl "40/5400+30:1800+30"]

{[%evp 10,99,45,24,33,31,60,54,58,61,77,44,52,0,5,15,21,12,54,9,65,57,86,63,91,93,98,98,92,69,78,76,68,75,67,38,46,50,41,42,104,118,154,146,147,147,204,139,225,140,163,135,149,137,109,107,145,135,127,86,138,121,125,101,128,135,138,141,217,219,216,234,243,233,255,228,255,187,170,158,197,193,279,263,382,428,427,417,847,806,945,947]} 1. e4 {[%emt 0:00:49]} e5 {[%emt 0:00:08]} 2. Nf3 {[%emt 0:00:23]} Nc6 {[%emt 0:00:09]} 3. Bb5 {[%emt 0:00:16]} Nd4 {[%emt 0:00:15]} 4. Nxd4 {[%emt 0:00:18]} exd4 {[%emt 0:00:05]} 5. O-O {[%emt 0:00:06]} Bc5 {[%emt 0:04:15]} 6. b4 {[%emt 0:00:48]} Bb6 {[%emt 0:02:17] C61: Ruy Lopez: Bird's Defence.} 7. a4 $146 {[%emt 0:00:39][%cal Ba2a4,Ba4a5][%mdl 32]} (7. Na3 a6 8. Bd3 Ne7 9. Nc4 Ba7 10. Bb2 Nc6 11. Qh5 d6 12. a3 b5 13. Na5 Nxa5 14. bxa5 {0-1 Smirin,I (2658)-Rapport,R (2693) ACP Masters Gp-B rapid 2015 (1)}) 7... a6 {[%emt 0:02:02]} 8. Bc4 {[%emt 0:00:46]} Ne7 {[%emt 0:02:31] White is slightly better.} 9. a5 {[%emt 0:00:57]} Ba7 {[%emt 0:00:05]} 10. Qh5 {[%emt 0:00:52][%csl Gc4][%cal Rh5f7] White is more active.} O-O {[%emt 0:03:36]} 11. Ra3 {[%emt 0:00:51]} (11. d3 $14) 11... d5 {[%emt 0:10:36]} 12. Bxd5 $40 {[%emt 0:03:13][%mdl 128] White is up to no good.} Nxd5 {[%emt 0:00:59] Black sacrificed a pawn} 13. exd5 {[%emt 0:00:11]} g6 {[%emt 0:01:08]} 14. Qf3 {[%emt 0:00:50]} (14. Rg3 Qd6 15. Qh6 f6 16. d3) 14... Bf5 {[%emt 0:03:01]} (14... c6 $11) 15. d3 $14 {[%emt 0:00:30]} h5 {[%emt 0:07:09]} 16. h3 {[%emt 0:00:19]} Qd7 {[%emt 0:09:43]} 17. Nd2 {[%emt 0:09:53]} Kg7 {[%emt 0:01:53]} 18. Bb2 {[%emt 0:02:55]} Rad8 {[%emt 0:12:14][%cal Ba8d8,Bd8d5,Bd5d4,Bd4f4][%mdl 32]} 19. c4 {[%emt 0:03:42]} dxc3 {[%emt 0:00:11]} 20. Rxc3 {[%emt 0:00:43]} (20. Bxc3+ f6) 20... Bd4 {[%emt 0:03:01] [#]} 21. Rxc7 {[%emt 0:01:00]} Qxd5 {[%emt 0:05:16]} 22. Qxd5 {[%emt 0:00:27]} (22. Bxd4+ {keeps more tension.} Qxd4 23. Qxb7 Bxd3 24. Nf3) 22... Rxd5 {[%emt 0:00:04]} 23. Bxd4+ {[%emt 0:00:05]} Rxd4 {[%emt 0:00:07]} 24. Rxb7 {[%emt 0:00:04]} Bxd3 {[%emt 0:04:19]} (24... Rxd3 $14 25. Nf3 Bxh3) 25. Nb3 {[%emt 0:00:29]} Rf4 {[%emt 0:02:51]} 26. Rd1 {[%emt 0:03:54]} Bc4 {[%emt 0:06:08] [#]} 27. Nd4 {[%emt 0:01:37]} Rc8 {[%emt 0:05:28]} (27... Rd8 $2 28. Nf5+ Rxf5 29. Rxd8 $18) (27... Ra8 $16 28. f3 Rf6 (28... Rd8 $2 29. Ne6+ Bxe6 30. Rxd8 $18)) 28. f3 {[%emt 0:04:24]} h4 {[%emt 0:00:11]} (28... Rd8 $2 29. Ne6+ Bxe6 30. Rxd8 $18) (28... Rf6 $16 29. Rd2 h4) 29. Kf2 {[%emt 0:00:46]} Rf6 {[%emt 0:02:53]} 30. Rd7 {[%emt 0:03:45]} Rb8 {[%emt 0:02:11]} 31. Rb1 {[%emt 0:00:08]} Bb5 {[%emt 0:02:34]} 32. Rd5 {[%emt 0:00:38]} Ba4 {[%emt 0:00:30]} 33. Ke3 {[%emt 0:01:29]} Bc6 {[%emt 0:02:41]} 34. Rc5 {[%emt 0:00:48]} Re8+ {[%emt 0:02:49]} (34... Bd7 $142) 35. Kf2 {[%emt 0:03:26]} Ba4 {[%emt 0:00:58]} 36. Re1 {[%emt 0:02:55]} Rxe1 {[%emt 0:01:50]} 37. Kxe1 $16 {[%emt 0:00:05][%mdl 4096] Endgame KRB-KRN. White is a pawn up.} Rd6 {[%emt 0:00:09]} 38. Rc4 {[%emt 0:00:46]} f5 {[%emt 0:00:26]} (38... Kf6 $16 39. Kf2 Kg7) 39. f4 $18 {[%emt 0:00:36]} Kf6 {[%emt 0:00:44]} 40. Kf2 {[%emt 0:00:45]} Rd7 {[%emt 0:02:24]} 41. Nf3 {[%emt 0:30:23]} Ke6 {[%emt 0:03:42]} 42. Ke3 {[%emt 0:00:00]} Rd1 {[%emt 0:02:28]} 43. Rd4 {[%emt 0:00:00]} Rb1 {[%emt 0:02:36]} 44. Nxh4 {[%emt 0:00:00]} Rb2 {[%emt 0:00:34]} 45. g3 {[%emt 0:00:00][%cal Bg2g3,Bg3g4,Bg4f5][%mdl 32]} ({Resist} 45. Nxg6 $6 Rxg2 46. Ne5 Rg3+ 47. Kf2 Rxh3 $16) 45... Bc6 {[%emt 0:03:02]} (45... Rh2 {was necessary.} 46. Rd3 (46. Nxg6 Rxh3 47. Kf2 Rh2+ 48. Kg1 Rb2 $16) 46... Rxh3) 46. Nxg6 {[%emt 0:00:00]} Rg2 {[%emt 0:03:01] [#]} (46... Bb5 $142 47. Ne5 Rb3+ 48. Nd3 Bxd3) 47. g4 $1 {[%emt 0:00:00] and gxf5+ would now be decisive} Rg3+ {[%emt 0:01:18]} 48. Kf2 {[%emt 0:00:00]} Rf3+ {[%emt 0:03:10]} (48... Rg2+ $142 49. Ke1 Rg1+ 50. Kd2 Ba4) 49. Ke2 {[%emt 0:00:00]} Rxh3 {[%emt 0:00:12]} 50. gxf5+ {[%emt 0:00:00] Weighted Error Value: White=0.13 (very precise) /Black=0.38  Mistake:       	White=1     	Black=9      Inaccurate:     	White=6     	Black=6      OK:         	White=20    	Black=13     Best:        	White=3     	Black=3      Brilliant:      	White=1     	---} 1-0

[Event "Karel Janecek Open 2025"]
[Site "Prague"]
[Date "2025.03.03"]
[Round "5.12"]
[White "Klek, Hanna Marie"]
[Black "Sasikiran, Krishnan"]
[Result "1/2-1/2"]
[Annotator "TA"]
[ECO "B72"]
[WhiteElo "2289"]
[BlackElo "2548"]
[PlyCount "129"]
[EventDate "2025.02.21"]
[EventType "swiss"]
[EventCountry "CZE"]
[SourceTitle "playchess.com"]
[Source "ChessBase"]
[SourceQuality "1"]
[TimeControl "40/5400+30:1800+30"]

{[%evp 11,129,22,52,47,52,35,64,58,69,46,43,41,46,33,73,31,27,37,69,40,26,33,20,0,0,-15,-25,-39,0,-66,195,189,180,157,246,254,226,243,328,321,318,303,306,208,220,83,79,0,0,-138,-136,-149,0,0,0,0,0,0,0,0,17,0,8,0,0,0,0,0,0,0,0,0,0,0,0,0,0,-8,-8,-10,-10,-10,-10,-10,-10,-10,-10,-10,-3,-68,-68,-68,-68,-68,-68,-68,-68,-68,-8,-8,-8,-116,-116,-116,-116,-116,-116,-116,-124,-125,-8,-8,-8,-8,-8,-8,-8,-8,-8,-8]} 1. e4 {[%emt 0:00:03]} c5 {[%emt 0:00:47]} 2. Nf3 {[%emt 0:00:06]} d6 {[%emt 0:00:07]} 3. d4 {[%emt 0:00:05]} cxd4 {[%emt 0:00:08]} 4. Nxd4 {[%emt 0:00:05]} Nf6 {[%emt 0:00:05]} 5. Nc3 {[%emt 0:00:06]} a6 {[%emt 0:00:09]} 6. Be3 {[%emt 0:00:08]} g6 {[%emt 0:04:51]} 7. f3 {[%emt 0:00:50] B72: Sicilian Dragon: 6 Be3, lines with h3+Bc4 and sidelines.} h5 {[%emt 0:01:40]} 8. Bc4 {[%emt 0:00:56]} Bg7 {[%emt 0:07:25]} 9. Qd2 {[%emt 0:02:05] White is slightly better.} Nbd7 {[%emt 0:02:11][%cal Bb8d7,Bd7e5,Be5c4][%mdl 32]} 10. a4 {[%emt 0:15:13] White is much more active.} Qc7 {[%emt 0:06:57]} 11. Ba2 {[%emt 0:05:28]} b6 {[%emt 0:06:55]} 12. O-O-O $146 {[%emt 0:12:39]} (12. O-O Bb7 13. Rad1 Ne5 14. Qe2 Rc8 15. h3 Nc4 16. Bc1 Nd7 17. Kh1 Nce5 18. Nd5 Bxd5 19. Bxd5 {1-0 Zheng,M (2050)-Vu,L (1813) PNWCC Online blitz JP 13th 2020 (10)}) 12... Bb7 {[%emt 0:05:37]} 13. h3 {[%emt 0:01:13]} h4 {[%emt 0:01:28]} 14. Kb1 {[%emt 0:04:21]} Ne5 {[%emt 0:09:32]} 15. Qe2 {[%emt 0:11:37]} Rc8 $1 {[%emt 0:12:15]} 16. Rhe1 {[%emt 0:06:35]} Nc4 {[%emt 0:07:34][%cal Oc4b2]} 17. Bc1 {[%emt 0:06:34]} Rh5 {[%emt 0:03:14]} 18. b3 {[%emt 0:03:33][%cal Bb2b3,Bb3b4][%mdl 32]} Ne5 {[%emt 0:03:17]} (18... Na5 {is more complex.} 19. Bb2 Rc5 20. Nd5 Nxd5 21. exd5 Rxd5 22. Ne6 fxe6 23. Bxg7 e5) 19. Bb2 {[%emt 0:00:14]} (19. Nd5 Bxd5 20. exd5 Nxd5 $17) 19... Ned7 {[%emt 0:01:00]} 20. f4 {[%emt 0:05:15]} (20. b4 $11) 20... Rc5 $2 {[%emt 0:05:02][%mdl 8192] [#] Black has strong rooks and is better} (20... Nc5 $1 $15 21. e5 dxe5 22. fxe5 Nd5 23. Nxd5 Bxd5) 21. Nd5 $1 $36 {[%emt 0:01:03][%mdl 2560] White has strong initiative.} Qd8 {[%emt 0:08:46]} (21... Nxd5 22. exd5) 22. c4 {[%emt 0:00:32]} Kf8 {[%emt 0:00:54]} (22... e5 $16) 23. b4 {[%emt 0:03:30]} R5c7 {[%emt 0:00:13] [#]} 24. e5 $1 {[%emt 0:09:47]} dxe5 {[%emt 0:08:03]} 25. fxe5 {[%emt 0:00:44]} (25. Nxc7 exd4 26. Nd5 Nxd5 27. cxd5 Nf6 $18) 25... Nxd5 {[%emt 0:00:54]} 26. cxd5 {[%emt 0:00:06]} Nxe5 {[%emt 0:00:41][%cal Od8d6] [#]} 27. Ne6+ $1 {[%emt 0:04:26][%mdl 512]} fxe6 {[%emt 0:00:57]} 28. Bxe5 {[%emt 0:01:33]} (28. dxe6 $18 {is the precise move to win.} Qe8 29. Bxe5) 28... exd5 $16 {[%emt 0:02:04][%cal Og7f6] [#]} (28... Bxe5 $2 29. Qxe5 Kg8 30. Qxe6+ (30. dxe6 Qf8 $11) (30. d6 exd6 31. Rxd6 Qf8 $18) 30... Kh7 31. Qf7+ (31. Qxb6 $2 Rc1+ 32. Rxc1 Qxb6 $19) 31... Kh8 32. Re4 $18 (32. Qxg6 Qd6 $18)) 29. Rf1+ {[%emt 0:02:29]} (29. Bxc7 Qxc7 30. Bxd5 Bf6 31. Bxb7 Qc3 $11) ({White should play} 29. Qf3+ $1 $16 Kg8 (29... Bf6 30. Bxd5 $16) 30. Bxc7 Qxc7 31. Rc1 (31. Bxd5+ Kh7 $15)) 29... Bf6 $11 {[%emt 0:00:37][%cal Of8g7]} 30. Bxf6 {[%emt 0:02:50]} (30. Rd4 $11) 30... exf6 $17 {[%emt 0:00:08]} 31. Qe6 {[%emt 0:00:23]} Rc6 {[%emt 0:01:38]} (31... Kg7 $17 {Threatens to win with ...Bc6.} 32. Bxd5 Qf8) 32. Qg4 $11 {[%emt 0:01:17]} f5 {[%emt 0:00:43]} 33. Bxd5 {[%emt 0:00:32][%cal Of1f5] And now Rxf5+! would win.} Qf6 {[%emt 0:00:32]} 34. Bxc6 {[%emt 0:00:19]} Bxc6 {[%emt 0:00:22]} 35. Qd4 {[%emt 0:00:32] Inhibits Qe5.} Kg7 {[%emt 0:00:40]} 36. Qxf6+ {[%emt 0:00:23]} (36. Qxb6 {gets mated.} Be4+ (36... Bxa4 $2 {is the wrong capture.} 37. Qb7+ Qf7 38. Qxc8 $18)) 36... Kxf6 {[%emt 0:00:04][%mdl 4096] Endgame KRR-KRB} 37. Rf2 {[%emt 0:00:19]} Ke5 {[%emt 0:00:46] Dodges Rd6} 38. Kb2 {[%emt 0:00:37]} Bxa4 {[%emt 0:00:37]} 39. Re2+ {[%emt 0:00:19]} Kf4 {[%emt 0:00:10]} 40. Rd4+ {[%emt 0:01:02]} Kg5 {[%emt 0:00:09]} 41. Rd6 {[%emt 0:01:30]} Rc6 {[%emt 0:06:02]} 42. Ree6 {[%emt 0:00:55][%csl LRc6,LRg6]} Rxd6 {[%emt 0:03:08]} 43. Rxd6 {[%emt 0:00:05] KR-KB} a5 {[%emt 0:03:12]} 44. Rxb6 {[%emt 0:07:56]} axb4 {[%emt 0:00:12]} 45. Kc1 {[%emt 0:00:29]} Bb3 {[%emt 0:03:42]} 46. Rb5 {[%emt 0:06:30] Dodges Bd5} Bc4 {[%emt 0:01:42]} 47. Rxb4 {[%emt 0:00:55]} Bd5 {[%emt 0:00:06]} 48. Kd2 {[%emt 0:07:32]} Bxg2 {[%emt 0:00:40]} 49. Rb3 {[%emt 0:00:06]} Kf4 {[%emt 0:04:36]} 50. Ke2 {[%emt 0:00:18]} (50. Ke1 $11) 50... Bd5 $1 $15 {[%emt 0:01:47]} 51. Ra3 {[%emt 0:01:13]} g5 {[%emt 0:00:46]} 52. Kf2 {[%emt 0:00:32]} g4 {[%emt 0:02:30]} 53. hxg4 {[%emt 0:00:35]} fxg4 {[%emt 0:00:35]} 54. Ra4+ {[%emt 0:01:04]} Be4 {[%emt 0:00:11]} 55. Kg1 {[%emt 0:01:19]} g3 {[%emt 0:01:45]} 56. Ra2 {[%emt 0:00:47]} (56. Rb4 $11) 56... h3 $17 {[%emt 0:01:28]} 57. Rb2 {[%emt 0:00:09]} Bd3 {[%emt 0:02:33]} 58. Ra2 {[%emt 0:03:46]} Ke3 {[%emt 0:01:38]} 59. Rb2 {[%emt 0:00:26]} Kf3 {[%emt 0:00:50]} 60. Ra2 {[%emt 0:00:26]} Be2 {[%emt 0:01:19]} (60... Bg6 $17 61. Rb2 Bd3) 61. Ra3+ $11 {[%emt 0:00:13] The position is equal.} Kf4 {[%emt 0:00:21]} 62. Ra4+ $1 {[%emt 0:00:39]} Ke3 {[%emt 0:01:51] ( -> ...h2+)} 63. Rh4 {[%emt 0:00:50]} h2+ {[%emt 0:01:06]} 64. Rxh2 {[%emt 0:00:07]} gxh2+ {[%emt 0:00:02]} 65. Kxh2 {[%emt 0:00:06] Weighted Error Value: White=0.19 (very precise) /Black=0.18 (very precise)   Loses game:     	---       	Black=1      Mistake:       	White=6     	Black=3      Inaccurate:     	White=3     	Black=4      OK:         	White=22    	Black=18     Best:        	White=3     	Black=11     Strong:       	White=1     	Black=2      Brilliant:      	White=1     	---} 1/2-1/2

[Event "Karel Janecek Open 2025"]
[Site "Prague"]
[Date "2025.03.03"]
[Round "5.13"]
[White "Vetoshko, Volodymyr"]
[Black "Walek, Petr"]
[Result "1-0"]
[Annotator "TA"]
[ECO "B76"]
[WhiteElo "2529"]
[BlackElo "2279"]
[PlyCount "61"]
[EventDate "2025.02.21"]
[EventType "swiss"]
[EventCountry "CZE"]
[SourceTitle "playchess.com"]
[Source "ChessBase"]
[SourceQuality "1"]
[TimeControl "40/5400+30:1800+30"]

{[%evp 30,61,54,52,89,79,81,93,102,120,135,123,495,517,580,519,815,781,714,618,29990,29991,29991,29992,29992,29993,29993,29994,29994,967,29995,29996,29996,29997]} 1. e4 {[%emt 0:02:25]} c5 {[%emt 0:00:24]} 2. Nf3 {[%emt 0:00:06]} d6 {[%emt 0:01:18]} 3. d4 {[%emt 0:00:10]} cxd4 {[%emt 0:00:05]} 4. Nxd4 {[%emt 0:00:03]} Nf6 {[%emt 0:00:06]} 5. Nc3 {[%emt 0:00:04]} g6 {[%emt 0:00:09]} 6. Be3 {[%emt 0:00:15]} Nc6 {[%emt 0:00:35]} 7. f3 {[%emt 0:00:47]} Bg7 {[%emt 0:02:03]} 8. Qd2 {[%emt 0:00:30]} O-O {[%emt 0:01:06]} 9. O-O-O {[%emt 0:00:55]} Nxd4 {[%emt 0:03:07]} 10. Bxd4 {[%emt 0:00:16]} Be6 {[%emt 0:00:05]} 11. Kb1 {[%emt 0:03:48]} Qc7 {[%emt 0:00:26]} 12. g4 {[%emt 0:02:33]} Rfc8 {[%emt 0:00:10]} 13. h4 {[%emt 0:04:52][%cal Bh2h4,Bh4h5,Bh5h6][%mdl 32]} Qa5 {[%emt 0:00:09]} 14. a3 {[%emt 0:05:46]} Rab8 {[%emt 0:00:25]} 15. h5 {[%emt 0:24:07]} b5 {[%emt 0:00:11][%cal Bb7b5,Bb5b4][%mdl 32]} 16. h6 {[%emt 0:05:20]} Bh8 {[%emt 0:20:33] And now ...b4 would win. A sharp opening B76: Sicilian Dragon: Yugoslav Attack, 9 g4 and 9 0-0-0.} 17. g5 $1 {[%emt 0:07:15]} b4 {[%emt 0:02:29]} 18. Nb5 {[%emt 0:00:18]} Qa4 {[%emt 0:01:04][%cal Ob4a3] White is better.} 19. Rh2 $1 {[%emt 0:07:50] Some like it hot} (19. gxf6 bxa3 20. b4 (20. fxe7 Rxc2 21. Qxc2 a2+ 22. Ka1 Qxc2 $17) 20... Ba2+ (20... Rxb5 $2 21. Bxb5 Qxb5 22. fxe7 $18) (20... a6 $2 21. fxe7 a2+ 22. Ka1 $18) 21. Kc1 Bxf6 $19 (21... Rxb5 $2 22. Bxb5 Qb3 23. Qd3 $18) (21... Qb3 22. Qd3 $16)) 19... b3 {[%emt 0:18:56] [#]} 20. c4 {[%emt 0:09:29][%cal Bc2c4,Bc4b5][%mdl 32] Active counter play!} (20. gxf6 $2 bxc2+ $19 (20... Rxb5 $2 {perishes.} 21. c3 $18)) 20... Rxb5 $146 {[%emt 0:35:36][%mdl 8192]} (20... Ne8 21. Nc3 Qa5 22. Nd5 Qxd2 23. Nxe7+ Kf8 24. Rhxd2 Kxe7 25. Bxh8 Bxc4 26. Bg2 f6 {1-0 Leiner,R (2389)-Mesquita,F (2341) WS MN/072 email 2011}) 21. cxb5 $18 {[%emt 0:02:59]} Nxe4 {[%emt 0:00:52]} 22. fxe4 {[%emt 0:09:04]} Rc2 {[%emt 0:00:54] [#]} (22... Bg4 $142 23. Bxh8 Bxd1) 23. Qe3 $1 {[%emt 0:01:42]} Rxh2 {[%emt 0:08:59] [#]} 24. Bxh8 $1 {[%emt 0:00:15]} Kxh8 {[%emt 0:00:58]} 25. Qc3+ {[%emt 0:00:19]} f6 {[%emt 0:00:04]} 26. gxf6 {[%emt 0:07:10]} Qxe4+ {[%emt 0:00:47]} 27. Ka1 {[%emt 0:01:06]} Qc2 {[%emt 0:01:55]} 28. f7+ {[%emt 0:00:54]} Qxc3 {[%emt 0:00:07]} 29. f8=Q+ {[%emt 0:00:06]} Bg8 {[%emt 0:00:07]} 30. bxc3 {[%emt 0:00:09][%csl Gh6][%cal Rf8g7]} b2+ {[%emt 0:00:59]} 31. Kb1 {[%emt 0:00:04] Black got outplayed after the opening.   Weighted Error Value: White=0.00 (flawless) /Black=1.04  Loses game:     	---       	Black=1      Mistake:       	---       	Black=1      OK:         	White=2     	Black=2      Best:        	White=1     	---        Strong:       	White=2     	---} 1-0